[Event "Paris FIDE GP"]
[Site "Elancourt"]
[Date "2013.10.02"]
[Round "9"]
[White "Gelfand, Boris"]
[Black "Ivanchuk, Vassily"]
[Result "1/2-1/2"]
[ECO "D15"]
[WhiteElo "2764"]
[BlackElo "2731"]
[Annotator "ChessBase Website"]
[PlyCount "60"]
[EventDate "2013.09.22"]
[EventType "tourn"]
[EventRounds "11"]
[EventCountry "FRA"]
[EventCategory "20"]
[SourceTitle "CBM 157"]
[Source "ChessBase"]
[SourceDate "2013.11.12"]
[SourceVersion "1"]
[SourceVersionDate "2013.11.12"]
[SourceQuality "1"]
[TimeControl "40/7200:20/3600:900+30"]
[WhiteClock "2:00:00"]
[BlackClock "2:00:00"]

1. d4 {[%emt 0:00:02]} d5 {[%emt 0:00:05]} 2. c4 {[%emt 0:00:03]} c6 {[%emt 0:
00:03]} 3. Nf3 {[%emt 0:00:08]} Nf6 {[%emt 0:00:06]} 4. e3 {[%emt 0:00:11]} a6
{[%emt 0:00:24] The Chebanenko or ...a6 Slav continues to be very solid;
Ivanchuk obtained a good position from the opening although it would be hard
for either side to make progress because of the locked situation in the center.
} 5. Nc3 {[%emt 0:01:19]} b5 {[%emt 0:00:20]} 6. c5 {[%emt 0:00:46]} g6 {
[%emt 0:00:42]} 7. Ne5 {[%emt 0:00:55]} Bg7 {[%emt 0:00:32]} 8. f4 {[%emt 0:01:
29]} a5 {[%emt 0:01:47]} 9. Be2 {[%emt 0:00:39]} h5 {[%emt 0:00:27]} 10. O-O {
[%emt 0:01:48]} Bf5 {[%emt 0:01:17]} 11. Bf3 {[%emt 0:18:02]} Qc7 {[%emt 0:26:
20]} 12. Nd3 $146 {[%emt 0:02:38]} (12. h3 Nbd7 13. Bd2 Ne4 14. Bxe4 dxe4 15.
a4 b4 16. Ne2 Nf6 17. Ng3 Nd5 18. Nc4 h4 19. Nxf5 gxf5 20. Rc1 Bf6 21. Qe2 e6
22. Kh1 Ke7 23. Be1 Rag8 24. Rg1 Rg6 25. Bf2 Qa7 26. Nd6 Kf8 27. Nc8 Qb7 28.
Nd6 Qa8 29. Rcd1 Bd8 30. Qe1 Bc7 31. Rc1 Rgh6 32. Qe2 Ke7 33. Nc4 Kd7 34. Rc2
Rg8 35. Rgc1 Qb7 36. Qe1 Rgh8 37. Qe2 R6h7 38. Qe1 f6 39. Qf1 Rg8 40. Qe1 b3
41. Re2 Nb4 {Rozum,I (2473)-Malakhov,V (2709) Loo 2013 1/2-1/2}) 12... Nbd7 {
[%emt 0:05:45]} 13. Nf2 {[%emt 0:01:08]} e6 {[%emt 0:00:10]} 14. Bd2 {[%emt 0:
03:12]} Ke7 $5 {[%emt 0:04:03] Ivanchuk's 14...Ke7!? was bizarre but by no
means a bad move as it highlighted that the game was indeed not going to be
opened up any time soon. Actually, the game never opened up, and the players
agreed to a draw in a position where all the pawns had survived but none of
the minor pieces remained on the board.} 15. Be1 {[%emt 0:09:05]} a4 {[%emt 0:
03:58]} 16. Nd3 {[%emt 0:32:21]} Ng4 {[%emt 0:02:29]} 17. Bxg4 {[%emt 0:02:25]}
Bxd3 {[%emt 0:04:26]} 18. Be2 {[%emt 0:07:03]} Bxe2 {[%emt 0:08:20]} 19. Nxe2 {
[%emt 0:01:58]} Kf8 {[%emt 0:03:00]} 20. Bh4 {[%emt 0:04:16]} Bf6 {[%emt 0:00:
07]} 21. Bxf6 {[%emt 0:01:24]} Nxf6 {[%emt 0:00:12]} 22. Nc1 {[%emt 0:00:02]}
Kg7 {[%emt 0:00:39]} 23. Nd3 {[%emt 0:01:28]} Ne4 {[%emt 0:00:31]} 24. Nf2 {
[%emt 0:00:43]} Nxf2 {[%emt 0:01:32]} 25. Rxf2 {[%emt 0:00:08]} f5 {[%emt 0:00:
03]} 26. h4 {[%emt 0:00:30]} Qe7 {[%emt 0:00:07]} 27. g3 {[%emt 0:00:03]} Ra6 {
[%emt 0:00:03]} 28. Qe1 {[%emt 0:00:41]} Rha8 {[%emt 0:00:22]} 29. Rc1 {
[%emt 0:00:11]} Qd8 {[%emt 0:00:12]} 30. Kg2 {[%emt 0:00:13]} Qa5 {[%emt 0:00:
12]} 1/2-1/2

[Event "FRA-chT Top 12"]
[Site "Brest"]
[Date "2019.05.22"]
[Round "5.4"]
[White "Rodshtein, Maxim"]
[Black "Postny, Evgeny"]
[Result "1/2-1/2"]
[ECO "D15"]
[WhiteElo "2699"]
[BlackElo "2603"]
[Annotator "Mueller,Karsten"]
[PlyCount "109"]
[EventDate "2019.05.18"]
[EventType "team-tourn"]
[EventRounds "11"]
[EventCountry "FRA"]
[SourceTitle "CBM 191"]
[Source "ChessBase"]
[SourceDate "2019.08.31"]
[SourceVersion "1"]
[SourceVersionDate "2019.08.31"]
[SourceQuality "1"]
[WhiteTeam "Bischwiller"]
[BlackTeam "Metz-echecs"]
[WhiteTeamCountry "FRA"]
[BlackTeamCountry "FRA"]
[TimeControl "40/5400+30:1800+30"]

1. c4 {[%emt 0:00:47]} c6 {[%emt 0:00:00]} 2. Nf3 {[%emt 0:00:44]} d5 {[%emt 0:
00:00]} 3. d4 {[%emt 0:01:17]} Nf6 {[%emt 0:00:00]} 4. e3 {[%emt 0:00:12]} Bf5
{[%emt 0:00:00]} 5. Nc3 {[%emt 0:00:14]} a6 {[%emt 0:00:15]} 6. Be2 {[%emt 0:
01:59]} (6. Nh4 Be6 7. c5 g6 8. Bd3 Bg7 9. O-O O-O 10. b4 Bc8 11. f4 Ne8 12.
Qe1 a5 13. Na4 axb4 14. Nb6 Ra7 15. Qxb4 Na6 16. Qc3 Nf6 17. Nxc8 Qxc8 18. Rb1
Nc7 19. Qc2 Ne4 20. Nf3 Qd7 21. a3 Rfa8 22. Rb3 f5 23. Bb2 Ne6 24. Rb1 Nd8 25.
Bc1 Bf6 26. g3 Kg7 27. Qg2 Ra4 28. h3 h5 29. g4 fxg4 30. hxg4 Qxg4 31. Qxg4
hxg4 32. Bxe4 gxf3 33. Bxf3 g5 34. f5 Kf8 35. Kf2 Ke8 {Nakamura,H (2761)
-Topalov,V (2740) Abidjan 2019 1-0}) 6... h6 {[%emt 0:00:25]} 7. Qb3 {[%emt 0:
00:40]} Ra7 {[%emt 0:00:22]} 8. cxd5 {[%emt 0:01:01]} cxd5 {[%emt 0:00:07]} 9.
Ne5 {[%emt 0:00:28]} (9. Bd2 e6 10. O-O) 9... e6 {[%emt 0:10:58]} 10. O-O {
[%emt 0:01:47]} Be7 {[%emt 0:02:37]} 11. Bd2 {[%emt 0:00:30]} Nfd7 {[%emt 0:03:
43]} (11... O-O) 12. Nxd7 {[%emt 0:10:47]} Nxd7 {[%emt 0:01:01]} 13. Rfc1 {
[%emt 0:01:18]} O-O {[%emt 0:02:33]} 14. Nd1 $146 {[%emt 0:09:16]} (14. Na4 b5
15. Nc5 Nb6 16. a4 bxa4 17. Nxa4 Nxa4 18. Qxa4 Qb8 19. b4 Rb7 20. Bxa6 Bxb4 21.
Bxb7 Bxd2 22. Qc6 Bxc1 23. Ra8 Qxa8 24. Bxa8 Ba3 25. Bb7 Be7 26. f3 Bf6 27. Kf2
h5 28. g3 Rd8 29. Qc7 Rf8 30. Ke2 Rd8 31. Ba6 Ra8 32. Qb7 Rd8 33. Kd2 Kf8 34.
Be2 Be7 35. Kc3 Bg6 36. Qc7 Ra8 37. Ba6 Rd8 38. Bb7 Bf5 39. Bc6 Bf6 40. Bb5 Kg8
41. Ba6 Re8 42. Kd2 Rd8 43. Ke2 Ra8 {Rodshtein,M (2678)-Antipov,M (2597) Sochi
2018 1/2-1/2 (70)}) 14... Nb8 {[%emt 0:07:57]} 15. Bb4 {[%emt 0:00:42]} Bxb4 {
[%emt 0:05:38]} 16. Qxb4 {[%emt 0:00:07]} Nc6 $1 {[%emt 0:00:06]} 17. Qa3 {
[%emt 0:17:07]} Re8 {[%emt 0:25:02]} 18. Rc5 {[%emt 0:15:34]} Qd6 {[%emt 0:07:
43]} 19. Rac1 {[%emt 0:02:59]} e5 $132 {[%emt 0:01:30]} 20. dxe5 {[%emt 0:06:
25]} Rxe5 {[%emt 0:02:28]} 21. Qb3 {[%emt 0:04:17]} Ne7 {[%emt 0:06:27]} 22.
Rc7 {[%emt 0:05:45]} d4 {[%emt 0:02:19]} 23. Rxb7 {[%emt 0:09:09]} Rxb7 {
[%emt 0:02:06]} 24. Qxb7 {[%emt 0:00:05]} d3 $1 {[%emt 0:07:12]} 25. Bf3 {
[%emt 0:00:06]} d2 {[%emt 0:07:12]} 26. Rc4 {[%emt 0:02:37]} (26. Rc3 Rb5 27.
Qa8+ Kh7 $13) 26... Be6 {[%emt 0:01:33]} 27. Qb4 {[%emt 0:03:45]} Qxb4 {
[%emt 0:00:30]} 28. Rxb4 {[%emt 0:00:05]} Bxa2 {[%emt 0:00:13]} 29. Rd4 {
[%emt 0:00:07]} Bd5 {[%emt 0:02:40]} 30. Bxd5 {[%emt 0:01:23]} Rxd5 {[%emt 0:
00:05]} 31. Rxd5 {[%emt 0:00:14]} Nxd5 {[%emt 0:00:03]} 32. Kf1 {[%emt 0:00:06]
} Kf8 {[%emt 0:00:13]} 33. Ke2 {[%emt 0:00:09]} Ke7 {[%emt 0:00:03]} 34. Kxd2
$11 {[%emt 0:00:11]} Kd6 {[%emt 0:00:04]} 35. e4 {[%emt 0:01:03]} Nb4 {[%emt 0:
02:19]} 36. Ne3 {[%emt 0:01:06]} Ke5 {[%emt 0:01:46]} 37. f3 {[%emt 0:00:12]}
Kd4 {[%emt 0:00:31]} 38. b3 $2 {[%emt 0:01:54] After this Black's activity
should suffice for a draw. Danach dürfte die schwarze Aktivität zum Remis
ausreichen.} ({White could win in a direct duel: Weiß konnte im direkten
Duell gewinnen:} 38. Nf5+ Kc4 39. Nxg7 Kb3 40. Nf5 {and the black a-pawn can
always be neutralised, e.g. und der schwarze a-Bauer kann stets neutralisiert
werden, z.B.} Kxb2 (40... h5 41. h4 Kxb2 42. g4 hxg4 43. fxg4 a5 44. h5 $18)
41. Nxh6 a5 (41... f6 42. Ng4 a5 43. Nxf6 a4 44. Nd5 $18) 42. Nxf7 a4 43. Nd6
Kb3 (43... a3 44. Nc4+ $18) 44. Nb5 Kc4 45. Nc3 a3 46. h4 $18) 38... g6 {
[%emt 0:00:14]} 39. Nc4 {[%emt 0:02:41]} (39. Ng4 h5 40. Nh6 f6 41. Ng8 f5 42.
exf5 gxf5 43. g3 (43. Nh6 f4 44. Nf7 Nd5 45. Nd8 Ne3 46. Ne6+ Ke5 47. Nc5 Nxg2
48. Nxa6 Nh4 49. Ke2 Nf5 50. Nc5 Nd4+ 51. Kf2 Kd5 52. Nd3 Ne6 $11) 43... Nd5
44. Nh6 Ne7 $11) 39... Nd3 {[%emt 0:00:32]} 40. Nd6 {[%emt 0:00:33]} Ne5 {
[%emt 0:00:45]} 41. Nb7 {[%emt 0:12:28]} h5 {[%emt 0:08:31]} 42. h4 {[%emt 0:
01:32]} Nc6 {[%emt 0:05:48]} 43. Nd6 {[%emt 0:02:53]} Ne5 {[%emt 0:00:35]} 44.
Ne8 {[%emt 0:02:58]} Nc6 {[%emt 0:11:31]} 45. Nc7 {[%emt 0:03:38]} Nb4 {
[%emt 0:02:11]} 46. g3 {[%emt 0:00:56]} Kc5 {[%emt 0:00:38]} 47. Ne8 {[%emt 0:
00:20]} Nc6 {[%emt 0:00:31]} 48. Kc3 {[%emt 0:02:56]} a5 {[%emt 0:00:18]} 49.
Nf6 {[%emt 0:00:45]} Ne5 {[%emt 0:00:46]} 50. f4 {[%emt 0:00:10]} Nf3 {[%emt 0:
01:17]} 51. e5 {[%emt 0:02:01]} Nd4 {[%emt 0:01:00]} 52. Ne4+ {[%emt 0:02:58]}
Kd5 {[%emt 0:00:03]} 53. Nf6+ {[%emt 0:00:05]} Kc5 {[%emt 0:00:03]} 54. Ne4+ {
[%emt 0:02:50]} Kd5 {[%emt 0:00:05]} 55. Nf6+ {[%emt 0:01:01]} 1/2-1/2

[Event "Sautron op 13th"]
[Site "Sautron"]
[Date "2013.11.01"]
[Round "8"]
[White "Nguyen, Chi Minh"]
[Black "Kasparov, Sergey"]
[Result "1/2-1/2"]
[ECO "D15"]
[WhiteElo "2389"]
[BlackElo "2480"]
[Annotator "RR"]
[PlyCount "181"]
[EventDate "2013.10.26"]
[EventType "swiss"]
[EventRounds "9"]
[EventCountry "FRA"]
[SourceTitle "EXT 2016"]
[Source "ChessBase"]
[SourceDate "2015.10.08"]
[SourceVersion "1"]
[SourceVersionDate "2015.10.08"]
[SourceQuality "1"]
[TimeControl "40/5400+30:1800+30"]
[WhiteClock "1:30:00"]
[BlackClock "1:30:00"]

1. d4 {[%emt 0:00:00]} d5 {[%emt 0:00:00]} 2. Nf3 {[%emt 0:00:12]} Nf6 {
[%emt 0:00:14]} 3. c4 {[%emt 0:00:07]} c6 {[%emt 0:00:04]} 4. Nc3 {[%emt 0:00:
47]} a6 {[%emt 0:00:10]} 5. e3 {[%emt 0:00:36]} (5. c5) 5... b5 {[%emt 0:00:26]
} 6. c5 {[%emt 0:00:26]} (6. b3 Bf5 7. Bd3 Bxd3 8. Qxd3 e6 9. O-O Be7 10. e4
dxe4 11. Nxe4 Nbd7 12. Bf4 O-O 13. Rfd1 Qa5 14. Nxf6+ Bxf6 15. Bd6 Rfd8 16. c5
Nf8 17. Ne5 Bxe5 18. dxe5 Ng6 19. Qe4 Rac8 20. h4 Rd7 21. h5 Ne7 22. h6 gxh6
23. Bxe7 Rxe7 24. Rd3 Qc7 25. Rad1 Rf8 26. Rg3+ Kh8 27. Rd6 f6 28. exf6 Rxf6
29. Qd4 {1-0 (29) Bacrot,E (2730)-Ivanchuk,V (2733) Cap d'Agde 2013}) 6... Nbd7
{[%emt 0:01:04]} 7. a3 {[%emt 0:01:49]} (7. b4) 7... g6 {[%emt 0:03:22]} 8. b4
{[%emt 0:00:52]} a5 {[%emt 0:04:01]} 9. Bb2 {[%emt 0:03:33]} Bg7 {[%emt 0:02:
22]} 10. Be2 {[%emt 0:06:31]} Qc7 {[%emt 0:04:37]} 11. O-O $146 {[%emt 0:08:44]
} (11. Nd2 e5 12. Nb3 a4 13. Na5 Rb8 14. g4 exd4 15. exd4 O-O 16. g5 Nh5 17.
Bxh5 gxh5 18. Qd2 Re8+ 19. Kf1 Nf8 20. h3 Bf5 21. Re1 Qd7 22. Re3 Ne6 23. Nd1
h4 24. f3 h6 25. gxh6 Bxh6 26. Qg2+ Kh7 27. Qf2 Nf4 28. Qxh4 Bc2 29. Bc1 Bxd1
30. Rxe8 Qxe8 31. Rh2 Be2+ 32. Kg1 Qg8+ 33. Kf2 Nd3+ 34. Kxe2 Nxc1+ 35. Kf1 Qg6
36. Rg2 Qd3+ 37. Kg1 Ne2+ 38. Kh2 Nxd4 {0-1 (38) Yashtylov,A (2414)-Alavkin,A 
(2476) Cheliabinsk 2005}) 11... O-O {[%emt 0:01:47]} 12. Qb3 {[%emt 0:16:23]}
a4 {[%emt 0:09:02] Les blancs vont garder un bon avantage d'espace après cet
échange} 13. Qa2 {[%emt 0:00:07]} Rb8 {[%emt 0:04:54]} 14. Rad1 {[%emt 0:02:
23]} Ne4 {[%emt 0:15:45]} 15. Bd3 {[%emt 0:09:02]} Nxc3 {[%emt 0:07:59]} (15...
f5 16. Nxd5 $5 cxd5 17. Bxe4 fxe4 18. Qxd5+ Kh8 19. Ng5 {[%cal Gg5f7]} (19.
Qxe4) 19... Nf6 20. Nf7+ Rxf7 21. Qxf7) 16. Bxc3 {[%emt 0:00:06]} Nf6 {[%emt 0:
00:47]} 17. Ne5 {[%emt 0:05:43][%csl Ge5]} Ng4 $1 {[%emt 0:07:00][%csl Rh2]}
18. Nxg4 {[%emt 0:01:10]} Bxg4 {[%emt 0:00:44]} 19. f3 {[%emt 0:01:57]} Bd7 {
[%emt 0:02:31]} 20. Qb2 {[%emt 0:06:40]} (20. e4) 20... Rbd8 {[%emt 0:03:11]}
21. Be1 {[%emt 0:01:00][%cal Ge1g3]} Qc8 {[%emt 0:02:55]} (21... e5 22. Bg3
Rfe8) 22. Bh4 {[%emt 0:02:13]} Rfe8 {[%emt 0:02:28]} 23. Rfe1 {[%emt 0:02:54]}
Bf5 {[%emt 0:03:33]} 24. Bf1 {[%emt 0:03:45]} Qd7 {[%emt 0:01:46]} 25. g4 {
[%emt 0:03:29]} Be6 {[%emt 0:01:34]} 26. h3 {[%emt 0:00:26]} Rf8 {[%emt 0:03:
06]} 27. Qh2 {[%emt 0:03:14]} Rde8 {[%emt 0:03:15]} 28. Bg3 {[%emt 0:04:05]}
Rd8 {[%emt 0:02:27]} 29. Rd2 {[%emt 0:01:53]} Qc8 {[%emt 0:00:51]} 30. Bd3 {
[%emt 0:00:56]} f5 {[%emt 0:05:06]} 31. Rf2 {[%emt 0:05:09]} Rf7 {[%emt 0:01:
56]} 32. Kg2 {[%emt 0:02:33]} Bh6 {[%emt 0:02:51]} 33. Be5 {[%emt 0:02:24]}
Rdf8 {[%emt 0:00:27]} 34. f4 {[%emt 0:02:24]} Bg7 {[%emt 0:00:21]} 35. Bxg7 {
[%emt 0:00:25]} Rxg7 {[%emt 0:00:11]} 36. g5 {[%emt 0:00:16][%csl Re6][%cal
Gh3h4,Gh4h5] Les Blancs ont un progressé mais l'avantage est trés minime} Kf7
$1 {[%emt 0:00:44] Anticipant l'ouvertrure de l'aile-roi} 37. h4 {[%emt 0:00:
45]} Ke8 {[%emt 0:02:03]} 38. h5 {[%emt 0:00:22]} Kd7 {[%emt 0:00:26]} 39. Rh1
{[%emt 0:01:02]} Rfg8 {[%emt 0:00:15]} 40. Kf1 {[%emt 0:00:00]} Qe8 {[%emt 0:
00:00]} 41. Qh3 {[%emt 0:04:02]} Qf8 {[%emt 0:03:51]} 42. Rg2 {[%emt 0:04:48]}
Qb8 {[%emt 0:01:24]} 43. Qf3 {[%emt 0:01:13]} Rf8 {[%emt 0:01:30]} 44. Ke1 {
[%emt 0:00:56]} (44. Rgh2) 44... Rfg8 {[%emt 0:00:32]} 45. Qe2 {[%emt 0:00:36]}
Kc7 {[%emt 0:02:05]} 46. Rhh2 {[%emt 0:01:11]} Bd7 {[%emt 0:00:27]} 47. Rg3 {
[%emt 0:00:15]} Qe8 {[%emt 0:00:31]} 48. hxg6 {[%emt 0:01:35] Enfin!} hxg6 {
[%emt 0:00:29]} 49. Rgh3 {[%emt 0:00:05]} Qf8 {[%emt 0:00:27]} 50. Qf3 {
[%emt 0:00:15]} Qf7 {[%emt 0:00:28]} 51. Qh1 {[%emt 0:00:59]} (51. Rh8 $6 Rxh8
52. Rxh8 Rh7 $11) 51... Qe6 {[%emt 0:00:17]} 52. Kd2 {[%emt 0:00:13]} Qf7 {
[%emt 0:00:10]} 53. Bc2 {[%emt 0:01:04]} (53. Rh6) 53... Qf8 {[%emt 0:01:21]}
54. Qd1 {[%emt 0:00:16]} Qa8 {[%emt 0:00:17]} 55. Rh6 {[%emt 0:00:16]} Qf8 {
[%emt 0:00:58]} 56. Kc1 {[%emt 0:00:17]} Qa8 {[%emt 0:00:24]} 57. Kb2 {[%emt 0:
00:17]} Be6 {[%emt 0:00:28]} 58. Bd3 {[%emt 0:01:08]} Bd7 {[%emt 0:00:48]} 59.
R6h3 {[%emt 0:00:12]} Qb8 {[%emt 0:00:14]} 60. Qh1 {[%emt 0:00:06]} Qe8 {
[%emt 0:01:07]} 61. Rh7 {[%emt 0:04:14]} Qf7 {[%emt 0:00:56]} 62. R7h6 {
[%emt 0:01:10]} Qe6 {[%emt 0:00:48]} 63. Qc1 {[%emt 0:00:10]} Qf7 {[%emt 0:00:
48]} 64. R6h3 {[%emt 0:00:25]} Rb8 {[%emt 0:00:39]} 65. Bc2 {[%emt 0:00:12]}
Ra8 {[%emt 0:00:39]} 66. Qf1 {[%emt 0:00:08]} Qg8 {[%emt 0:00:51]} 67. Bd3 {
[%emt 0:01:22]} Rb8 {[%emt 0:00:45]} 68. Qh1 {[%emt 0:00:10]} Qf7 {[%emt 0:00:
22]} 69. Rh6 {[%emt 0:00:48]} Rbg8 {[%emt 0:01:09]} 70. Bc2 {[%emt 0:00:37]}
Ra8 {[%emt 0:00:24]} 71. R2h3 {[%emt 0:00:12]} Rag8 {[%emt 0:00:15]} 72. Qd1 {
[%emt 0:00:11]} Ra8 {[%emt 0:00:21]} 73. Qe2 {[%emt 0:00:10]} Qg8 {[%emt 0:00:
33]} 74. Bb1 {[%emt 0:00:10]} Qf7 {[%emt 0:00:18]} 75. Qh2 {[%emt 0:00:30]} Kb7
{[%emt 0:01:00]} 76. Bc2 {[%emt 0:00:25]} Rag8 {[%emt 0:00:17]} 77. Bd3 {
[%emt 0:00:42]} Qe6 {[%emt 0:00:53]} 78. Qe2 {[%emt 0:01:04]} Kc7 {[%emt 0:00:
17]} 79. Bc2 {[%emt 0:00:05]} Qf7 {[%emt 0:01:25]} 80. Qe1 {[%emt 0:01:38]} Ra8
{[%emt 0:00:49]} 81. Kc1 {[%emt 0:00:08]} Qg8 {[%emt 0:00:18]} 82. Qh1 {
[%emt 0:00:37]} Qf7 {[%emt 0:00:22]} 83. Rh7 {[%emt 0:00:17]} Rag8 {[%emt 0:00:
23]} 84. R7h6 {[%emt 0:00:37]} Ra8 {[%emt 0:00:33]} 85. Qh2 {[%emt 0:00:32]}
Rag8 {[%emt 0:00:55]} 86. Qg1 {[%emt 0:00:17]} Ra8 {[%emt 0:00:12]} 87. Qe1 {
[%emt 0:00:07]} Qg8 {[%emt 0:00:12]} 88. Kb2 {[%emt 0:00:14]} Qf7 {[%emt 0:00:
06]} 89. Rh8 {[%emt 0:00:14]} Rxh8 {[%emt 0:01:28]} 90. Rxh8 {[%emt 0:00:05]}
Rh7 {[%emt 0:01:32]} 91. Rxh7 {[%emt 0:00:03]} 1/2-1/2

[Event "Sautron op 13th"]
[Site "Sautron"]
[Date "2013.10.28"]
[Round "4"]
[White "Avrukh, Boris"]
[Black "Koziak, Vitali"]
[Result "1/2-1/2"]
[ECO "D15"]
[WhiteElo "2576"]
[BlackElo "2481"]
[Annotator "RR"]
[PlyCount "95"]
[EventDate "2013.10.26"]
[EventType "swiss"]
[EventRounds "9"]
[EventCountry "FRA"]
[SourceTitle "EXT 2014"]
[Source "ChessBase"]
[SourceDate "2013.11.20"]
[SourceVersion "1"]
[SourceVersionDate "2013.11.20"]
[SourceQuality "1"]
[TimeControl "40/5400+30:1800+30"]
[WhiteClock "1:30:00"]
[BlackClock "1:30:00"]

1. d4 {[%emt 0:00:00]} d5 {[%emt 0:00:00]} 2. c4 {[%emt 0:00:00]} c6 {[%emt 0:
00:00]} 3. Nf3 {[%emt 0:00:00]} Nf6 {[%emt 0:00:00]} 4. Nc3 {[%emt 0:01:34]} a6
{[%emt 0:02:04]} (4... dxc4 {Le GMI ne traite que cette variante dans sa
monographie publiée en 2014}) 5. a4 {[%emt 0:01:54]} (5. e3 b5 6. c5 Bf5 7.
Ne5 Nfd7 8. Nxf7 Kxf7 9. Qf3 Ke6 10. g4 Bg6 (10... Bc2) 11. Bh3 {Bacrot,E 
(2705)-Draoui,N (2362) FRA-ch blitz 2009 (4) 1-0}) (5. c5 g6 6. h3 (6. Bf4)
6... Bg7 7. Bf4 O-O 8. e3 Bf5 9. Qb3 Qc8 10. Be2 Nbd7 11. O-O Ne4 12. Rac1 Re8
13. Na4 f6 {Tomashevsky,E (2722)-Yilmaz,M (2577) EU-chT (Men) 19th 2013 (2.1)
1/2} (13... e5 14. dxe5 Bf8 15. Nd4 Nexc5 16. Nxc5 Nxc5 17. Rxc5 Bxc5 18. Nxf5
gxf5 19. Bd3 Ba7 20. Qc2 $44 {Yilmaz inf119})) 5... e6 {[%emt 0:06:56]} 6. Bg5
{[%emt 0:00:10]} (6. g3 dxc4 7. Bg2 c5) (6. Bf4) 6... Nbd7 {[%emt 0:05:35]} 7.
e3 {[%emt 0:01:02]} (7. a5 Bb4 8. Qa4) 7... Qa5 $5 {[%emt 0:06:06][%cal Gf6e4,
Ge4g5,Gd5c4,Ga5e1] Rentre dans une position proche de la Cambridge Springs
mais avec les coups a4 et a6 en plus. Après Bb4, les Blancs n'auront plus
l'option a3 et cette transposition ne doit pas favoriser les Blancs} 8. Be2 {
[%emt 0:00:50] La préparation du GMI qui choisit une ligne secondaire} (8. Nd2
Bb4 9. Qc2 e5 10. Bh4 exd4 11. exd4 O-O 12. Be2 Re8 13. Nb3 Qc7 14. O-O Bd6 15.
Kh1 Ne4 16. Bd3 dxc4 17. Bxe4 cxb3 18. Bxh7+ Kh8 19. Qd3 Re6 20. Rae1 Nf8 21.
Be4 Rh6 22. Bg3 Bg4 23. Kg1 Ne6 24. Qc4 Bxg3 25. fxg3 Qb6 26. a5 Qxa5 27. h3
Qc7 28. hxg4 Qxg3 29. Qd3 Qh2+ 30. Kf2 Qh4+ 31. g3 Rf6+ 32. Kg2 Qxg4 33. Rxf6
gxf6 34. Ne2 Qg5 35. Qxb3 Kg7 36. Qxb7 Rd8 37. Qxc6 Qe3 {Laznicka,V (2666)
-Kamsky,G (2725) Rhodes 2013 1-0}) (8. cxd5 exd5) 8... Bb4 $146 {[%emt 0:10:22]
Visiblement les Noirs n'avaient pas préparé cette ligne Be2 et ils
commencent à réfléchir} (8... Ne4 9. O-O Nxg5 10. Nxg5 dxc4 11. Nge4 Nb6 12.
Nd2 Bb4 13. Bxc4 Bxc3 14. bxc3 Qxc3 15. Be2 O-O 16. a5 Nd5 17. Ne4 Qb4 18. Nc5
b6 19. Ra4 Qc3 20. axb6 Nxb6 21. Ra2 Nd5 22. Qa4 Rb8 23. Qxc6 Nb4 24. Qd6 Nxa2
25. Qxb8 Nb4 26. Qb6 Nd5 27. Qd6 a5 28. Bf3 Nb4 29. Qb6 e5 30. d5 Nd3 31. Nxd3
Qxd3 32. Qxa5 e4 33. Rd1 Qc2 34. Bh5 g6 35. d6 gxh5 36. Qg5+ Kh8 37. Qf6+ Kg8
38. Qg5+ {Bosiocic,M (2578)-Jovanic,O (2527) Rijeka 2009 1/2-1/2}) 9. O-O $1 {
[%emt 0:01:14]} Ne4 {[%emt 0:11:21] Après une longue réflexion, les Noirs
décident d'accepter le P sacrifié mais mais les Blancs ont des bonnes
compensations} (9... Bxc3 10. bxc3 Qxc3 11. a5 $44 {[%csl Rc3][%cal Gd1a4,
Gf1c1]} O-O $6 12. Qa4 {[%csl Rc3][%cal Gf1c1]} Ne4 13. Rfc1) 10. Bf4 {[%emt 0:
05:48]} Nxc3 {[%emt 0:05:51]} 11. bxc3 {[%emt 0:01:17]} Bxc3 {[%emt 0:01:17]}
12. Rb1 $44 {[%emt 0:10:53]} (12. Rc1 {[%cal Gd1b3]}) 12... Qd8 $6 {[%emt 0:00:
41][%cal Gc3a5,Ga5c7] Libère une case de repli pour le B mais au risque d'un
retard de développement} (12... O-O 13. Qc2) 13. Qc2 $32 {[%emt 0:18:54]} Ba5
{[%emt 0:01:29]} 14. e4 $1 {[%emt 0:00:18]} dxe4 {[%emt 0:13:33]} 15. Qxe4 {
[%emt 0:01:09]} Nf6 {[%emt 0:02:33]} 16. Qe3 {[%emt 0:02:15]} O-O {[%emt 0:02:
21]} 17. Bg5 $1 $44 {[%emt 0:07:03][%csl Rh7][%cal Ge2d3,Gf1d1] Le plan Qd8
Ba5 a aussi pour désavantage de rendre plus fort le clouage du Bg5} Bc7 {
[%emt 0:01:37]} 18. Ne5 {[%emt 0:04:25]} (18. Rfd1 {[%csl Rh7][%cal Gd1d8,
Gf3e5,Ge3h3,Ge2d3,Gg5f6]}) 18... Bd6 $1 {[%emt 0:01:00][%cal Gd6e7]
Reconnaissant que le Ba5 serait mieux placé en e7} 19. Bd3 $1 {[%emt 0:05:41]}
Be7 {[%emt 0:04:29]} 20. Qh3 {[%emt 0:01:05][%csl Rh7] Forçant un
affaibliisement non négligeable de l'aile-roi} g6 {[%emt 0:00:57]} 21. Qh4 {
[%emt 0:03:50][%cal Gh4d4,Gg5f6]} Re8 {[%emt 0:12:20]} 22. Qf4 {[%emt 0:01:08]}
(22. Rfd1 $14 {[%cal Gd1d4]}) 22... Rf8 {[%emt 0:01:04] Les Noirs sont proches
du zugzwang car ils sont incapables de terminer le développement de
l'aile-dame} 23. Bh6 {[%emt 0:02:11]} Nh5 {[%emt 0:00:23]} 24. Qe3 {[%emt 0:07:
54]} Ng7 {[%emt 0:00:38]} 25. Rfd1 {[%emt 0:01:05]} (25. c5 $5 {Le N g7 est
mal placé pour profiter de l'affaiblissement de la case "d5"} f6 26. Nc4 {
[%csl Re6]} Re8 27. Nb6 Rb8 28. Bf4 $40) 25... Re8 {[%emt 0:04:07]} 26. g4 $1 {
[%emt 0:02:04][%csl Gf5]} f6 {[%emt 0:00:09] (=)} 27. Nf3 {[%emt 0:00:18]} (27.
Nxg6 $5 hxg6 28. Bxg6 Rf8 29. Bf4 Qa5 30. c5 {Et les Noirs sont quasiment en
zugzwang!}) 27... Bf8 {[%emt 0:01:02]} 28. c5 $5 {[%emt 0:01:04]} Kh8 {[%emt 0:
01:28][%cal Ge6e5]} (28... e5 29. dxe5 Bxg4 30. Bc4+ Kh8 31. Rxd8) 29. Qf4 {
[%emt 0:04:40]} (29. h3 $142 {Semble plus naturel} e5 30. dxe5 {[%cal Ge3c5]})
29... e5 $1 {[%emt 0:02:46][%cal Gg7e6,Ge6f4,Gf8h6] un bon sacrifice de
dégagement} 30. dxe5 {[%emt 0:00:18]} Ne6 $132 {[%emt 0:00:13]} 31. Qc1 {
[%emt 0:00:32]} Nd4 {[%emt 0:00:38]} (31... Qd5 $5 {[%cal Gd5f3]}) 32. Nxd4 {
[%emt 0:08:13]} Qxd4 {[%emt 0:00:02]} 33. Be2 {[%emt 0:00:16]} Bxh6 {[%emt 0:
00:51]} (33... Qxe5) 34. Rxd4 {[%emt 0:05:28]} Bxc1 {[%emt 0:00:32]} 35. Rxc1 {
[%emt 0:00:02]} fxe5 {[%emt 0:00:05]} 36. Re4 {[%emt 0:00:11]} Be6 $11 {
[%emt 0:00:34]} 37. Rb1 {[%emt 0:00:49]} (37. Rxe5 $143 Bb3 {[%csl Ra4]}) 37...
a5 {[%emt 0:00:41]} 38. Rxe5 {[%emt 0:02:34]} Ba2 {[%emt 0:01:26]} 39. Rxe8+ {
[%emt 0:00:07]} Rxe8 {[%emt 0:00:02]} 40. Rb2 {[%emt 0:00:00]} Bd5 {[%emt 0:00:
00]} 41. Kf1 {[%emt 0:05:50]} Re7 {[%emt 0:10:34]} 42. g5 {[%emt 0:05:34]} h6 {
[%emt 0:02:29]} 43. h4 {[%emt 0:02:59]} hxg5 {[%emt 0:03:56]} 44. hxg5 {
[%emt 0:00:02]} Re5 {[%emt 0:01:17]} 45. Rxb7 {[%emt 0:03:00]} Rxg5 {[%emt 0:
00:18]} 46. f3 {[%emt 0:10:19]} Ba2 {[%emt 0:07:49]} 47. Bd3 {[%emt 0:01:40]}
Rxc5 {[%emt 0:00:29]} 48. Bxg6 {[%emt 0:00:14][%csl Rh8]} 1/2-1/2